fUSD/lending_fUSD_20241222
["ID","MTS","AMOUNT","RATE_DAILY","PERIOD"]
[346294798,1734877845039,-500.0,0.00019452,2]
[346294799,1734877845048,-1106.03,0.00019452,2]
[346294800,1734877845058,-212.62372545,0.00019452,2]
[346294801,1734877845071,-500.0,0.00019452,2]
[346294802,1734877845080,-500.0,0.00019452,2]
[346294803,1734877845090,-609.07,0.00019452,2]
[346294804,1734877845099,-500.0,0.00019452,2]
[346294805,1734877845108,-500.0,0.00019452,2]
[346294806,1734877845118,-500.0,0.00019452,2]
[346294807,1734877845127,-500.0,0.00019452,2]
[346294808,1734877845138,-500.0,0.00019452,2]
[346294809,1734877845148,-500.0,0.00019452,2]
[346294810,1734877845159,-1061.09,0.00019452,2]
[346294811,1734877845169,-500.0,0.00019452,2]
[346294812,1734877845178,-500.0,0.00019452,2]
[346294813,1734877845187,-500.0,0.00019452,2]
[346294814,1734877845196,-500.0,0.00019452,2]
[346294815,1734877845205,-500.0,0.00019452,2]
[346294816,1734877845215,-500.0,0.00019452,2]
[346294817,1734877845224,-407.20956934,0.00019452,2]
[346294818,1734877845233,-500.0,0.00019452,2]
[346294819,1734877845243,-500.0,0.00019452,2]
[346294820,1734877845252,-588.28677955,0.00019452,2]
[346294821,1734877845261,-500.0,0.00019452,2]
[346294822,1734877845270,-500.0,0.00019452,2]
[346294823,1734877845280,-500.0,0.00019452,2]
[346294824,1734877845289,-928.87,0.00019452,2]
[346294825,1734877845298,-500.0,0.00019452,2]
[346294826,1734877845307,-622.46,0.00019452,2]
[346294827,1734877845316,-500.0,0.00019452,2]
[346294828,1734877845326,-500.0,0.00019452,2]
[346294829,1734877845335,-500.0,0.00019452,2]
[346294830,1734877845344,-500.0,0.00019452,2]
[346294831,1734877845353,-2137.17,0.00019452,2]
[346294832,1734877845363,-248.23536329,0.00019452,2]
[346294833,1734877845372,-1326.15,0.00019452,2]
[346294834,1734877845383,-2980.8,0.00019452,2]
[346294835,1734877845393,-500.0,0.00019452,2]
[346294836,1734877845403,-830.2,0.00019452,2]
[346294837,1734877845412,-3811.29,0.00019452,2]
[346294838,1734877845422,-500.0,0.00019452,2]
[346294839,1734877845431,-500.0,0.00019452,2]
[346294840,1734877845440,-500.0,0.00019452,2]
[346294841,1734877845449,-500.0,0.00019452,2]
[346294842,1734877845458,-13262.85,0.00019452,2]
[346294843,1734877845468,-956.22,0.00019452,2]
[346294845,1734877845477,-979.7,0.00019452,2]
[346294847,1734877845487,-500.0,0.00019452,2]
[346294849,1734877845497,-1228.81,0.00019452,2]
[346294851,1734877845506,-500.0,0.00019452,2]
[346294853,1734877845515,-1043.8,0.00019452,2]
[346294855,1734877845525,-500.0,0.00019452,2]
[346294857,1734877845535,-515.01,0.00019452,2]
[346294859,1734877845545,-500.0,0.00019452,2]
[346294861,1734877845554,-1802.79,0.00019452,2]
[346294862,1734877845564,-500.0,0.00019452,2]
[346294863,1734877845574,-500.0,0.00019452,2]
[346294864,1734877845583,-500.0,0.00019452,2]
[346294866,1734877845593,-500.0,0.00019452,2]
[346294867,1734877845603,-1000.0,0.00019452,2]
[346294868,1734877845613,-515.06,0.00019452,2]
[346294869,1734877845623,-2502.68,0.00019452,2]
[346294870,1734877845633,-967.38,0.00019452,2]
[346294871,1734877845643,-727.82,0.00019452,2]
[346294872,1734877845652,-500.0,0.00019452,2]
[346294873,1734877845662,-500.0,0.00019452,2]
[346294874,1734877845672,-500.0,0.00019452,2]
[346294875,1734877845681,-338.14,0.00019452,2]
[346294876,1734877845690,-500.0,0.00019452,2]
[346294877,1734877845700,-500.0,0.00019452,2]
[346294878,1734877845709,-500.0,0.00019452,2]
[346294879,1734877845719,-500.0560261,0.00019452,2]
[346294880,1734877845729,-762.45,0.00019452,2]
[346294881,1734877845738,-6787.34,0.00019452,2]
[346294882,1734877845748,-593.47,0.00019452,2]
[346294883,1734877845757,-895.13,0.00019452,2]
[346294884,1734877845767,-1264.2,0.00019452,2]
[346294885,1734877845776,-579.67,0.00019452,2]
[346294886,1734877845786,-711.07,0.00019452,2]
[346294887,1734877845796,-500.0,0.00019452,2]
[346294888,1734877845806,-500.0,0.00019452,2]
[346294889,1734877845815,-569.73,0.00019452,2]
[346294890,1734877845824,-608.48,0.00019452,2]
[346294891,1734877845834,-800.26,0.00019452,2]
[346294892,1734877845843,-714.14,0.00019452,2]
[346294893,1734877845852,-500.0,0.00019452,2]
[346294894,1734877845862,-634.39,0.00019452,2]
[346294895,1734877845871,-742.63,0.00019452,2]
[346294896,1734877845881,-500.0,0.00019452,2]
[346294897,1734877845890,-3264.05,0.00019452,2]
[346294898,1734877845899,-500.0,0.00019452,2]
[346294899,1734877845909,-39655.14,0.00019452,2]
[346294900,1734877845919,-500.0,0.00019452,2]
[346294901,1734877845929,-500.0,0.00019452,2]
[346294902,1734877845939,-500.0,0.00019452,2]
[346294903,1734877845949,-788.51,0.00019452,2]
[346294904,1734877845958,-500.0,0.00019452,2]
[346294905,1734877845968,-3192.85,0.00019452,2]
[346294906,1734877845977,-6342.98,0.00019452,2]
[346294907,1734877845987,-526.16,0.00019452,2]
[346294908,1734877845996,-500.0,0.00019452,2]
[346294909,1734877846005,-656.08,0.00019452,2]
[346294910,1734877846015,-57274.95,0.00019452,2]
[346294911,1734877846024,-630.43,0.00019452,2]
[346294912,1734877846034,-616.99,0.00019452,2]
[346294913,1734877846044,-1504.9,0.00019452,2]
[346294914,1734877846054,-596.06,0.00019452,2]
[346294915,1734877846067,-1291.47,0.00019452,2]
[346294916,1734877846076,-500.0,0.00019452,2]
[346294917,1734877846086,-500.0,0.00019452,2]
[346294918,1734877846096,-500.0,0.00019452,2]
[346294919,1734877846107,-500.0,0.00019452,2]
[346294920,1734877846117,-9963.41,0.00019452,2]
[346294921,1734877846126,-1367.86,0.00019452,2]
[346294922,1734877846138,-1222.36,0.00019452,2]
[346294923,1734877846148,-598.3,0.00019452,2]
[346294924,1734877846159,-707.92,0.00019452,2]
[346294925,1734877846169,-500.0,0.00019452,2]
[346294926,1734877846178,-6900.51,0.00019452,2]
[346294927,1734877846187,-500.0,0.00019452,2]
[346294928,1734877846197,-500.25,0.00019452,2]
[346294929,1734877846207,-500.0,0.00019452,2]
[346294930,1734877846216,-500.0,0.00019452,2]
[346294931,1734877846226,-6786.32,0.00019452,2]
[346294932,1734877846236,-500.0,0.00019452,2]
[346294933,1734877846245,-662.61,0.00019452,2]
[346294934,1734877846255,-4720.3,0.00019452,2]
[346294935,1734877846264,-92391.52,0.00019452,2]
[346294936,1734877846273,-3376.41,0.00019452,2]
[346294937,1734877846282,-3622.04,0.00019452,2]
[346294939,1734877846292,-200.31553378,0.00019452,2]
[346294940,1734877846301,-500.0,0.00019452,2]
[346294941,1734877846310,-500.0,0.00019452,2]
[346294942,1734877846320,-1739.09,0.00019452,2]
[346294943,1734877846329,-1394.93,0.00019452,2]
[346294944,1734877846339,-500.0,0.00019452,2]
[346294945,1734877846349,-500.0,0.00019452,2]
[346294946,1734877846358,-698.42,0.00019452,2]
[346294947,1734877846367,-979.42,0.00019452,2]
[346294948,1734877846377,-1054.08,0.00019452,2]
[346294949,1734877846390,-416.42,0.00019452,2]
[346294950,1734877846400,-3215.89,0.00019452,2]
[346294951,1734877846410,-500.0,0.00019452,2]
[346294952,1734877846420,-2666.71,0.00019452,2]
[346294953,1734877846429,-15734.91,0.00019452,2]
[346294954,1734877846439,-500.0,0.00019452,2]
[346294955,1734877846449,-857.83,0.00019452,2]
[346294956,1734877846459,-26235.85,0.00019452,2]
[346294957,1734877846469,-812.98,0.00019452,2]
[346294958,1734877846479,-500.0,0.00019452,2]
[346294959,1734877846488,-500.0,0.00019452,2]
[346294960,1734877846499,-778.95,0.00019452,2]
[346294961,1734877846510,-723.17,0.00019452,2]
[346294962,1734877846519,-9970.92,0.00019452,2]
[346294963,1734877846529,-24609.36,0.00019452,2]
[346294964,1734877846539,-1438.94,0.00019452,2]
[346294965,1734877846549,-596.1,0.00019452,2]
[346294966,1734877846559,-500.0,0.00019452,2]
[346294967,1734877846569,-500.0,0.00019452,2]
[346294968,1734877846578,-7570.44,0.00019452,2]
[346294969,1734877846588,-1774.55,0.00019452,2]
[346294970,1734877846597,-2123.77,0.00019452,2]
[346294971,1734877846607,-500.0,0.00019452,2]
[346294972,1734877846616,-637.52,0.00019452,2]
[346294973,1734877846626,-904.46,0.00019452,2]
[346294974,1734877846636,-1650.21,0.00019452,2]
[346294975,1734877846646,-5862.71,0.00019452,2]
[346294976,1734877846656,-500.0,0.00019452,2]
[346294977,1734877846665,-500.0,0.00019452,2]
[346294978,1734877846675,-9034.82,0.00019452,2]
[346294979,1734877846685,-500.0,0.00019452,2]
[346294980,1734877846695,-500.0,0.00019452,2]
[346294981,1734877846705,-500.0,0.00019452,2]
[346294982,1734877846715,-586.48,0.00019452,2]
[346294983,1734877846726,-500.0,0.00019452,2]
[346294984,1734877846736,-3741.45,0.00019452,2]
[346294985,1734877846747,-4796.31,0.00019452,2]
[346294986,1734877846764,-2570.84,0.00019452,2]
[346294987,1734877846773,-1015.42,0.00019452,2]
[346294988,1734877846783,-500.0,0.00019452,2]
[346294989,1734877846793,-8523.25,0.00019452,2]
[346294990,1734877846803,-6010.73,0.00019452,2]
[346294991,1734877846813,-500.0,0.00019452,2]
[346294992,1734877846822,-885.61,0.00019452,2]
[346294993,1734877846832,-1100.37,0.00019452,2]
[346294994,1734877846842,-792.43,0.00019452,2]
[346294995,1734877846852,-11364.4,0.00019452,2]
[346294996,1734877846861,-4871.46,0.00019452,2]
[346294997,1734877846871,-500.0,0.00019452,2]
[346294998,1734877846881,-500.0,0.00019452,2]
[346294999,1734877846893,-658.83,0.00019452,2]
[346295000,1734877846903,-30092.32,0.00019452,2]
[346295001,1734877846915,-776.64,0.00019452,2]
[346295002,1734877846925,-255.811772,0.00019452,2]
[346295003,1734877846937,-500.0,0.00019452,2]
[346295004,1734877846948,-644.04,0.00019452,2]
[346295005,1734877846958,-500.0,0.00019452,2]
[346295006,1734877846968,-500.0,0.00019452,2]
[346295007,1734877846978,-468.411612,0.00019452,2]
[346295008,1734877846988,-592.03,0.00019452,2]
[346295009,1734877846999,-500.0,0.00019452,2]
[346295010,1734877847010,-500.0,0.00019452,2]
[346295011,1734877847020,-2998.78,0.00019452,2]
[346295012,1734877847186,-500.0,0.00019452,2]
[346295013,1734877847197,-2281.41,0.00019452,2]
[346295014,1734877847208,-500.0,0.00019452,2]
[346295015,1734877847218,-500.0,0.00019452,2]
[346295016,1734877847232,-500.0,0.00019452,2]
[346295017,1734877847242,-500.0,0.00019452,2]
[346295018,1734877847252,-234.91452219,0.00019452,2]
[346295019,1734877847262,-1769.68,0.00019452,2]
[346295020,1734877847272,-500.0,0.00019452,2]
[346295021,1734877847286,-500.0,0.00019452,2]
[346295022,1734877847296,-2209.68,0.00019452,2]
[346295023,1734877847307,-500.0,0.00019452,2]
[346295024,1734877847316,-1736.21,0.00019452,2]
[346295025,1734877847326,-500.0,0.00019452,2]
[346295026,1734877847336,-2248.71,0.00019452,2]
[346295027,1734877847346,-362.28875376,0.00019452,2]
[346295028,1734877847356,-500.0,0.00019452,2]
[346295029,1734877847366,-3906.38437615,0.00019454,2]
[346295030,1734877847375,-5194.41337268,0.00019454,2]
[346295031,1734877847387,-153.0,0.00019454,2]
[346295032,1734877847398,-153.0,0.00019454,2]
[346295033,1734877847408,-153.0,0.00019454,2]
[346295034,1734877847418,-153.0,0.00019454,2]
[346295035,1734877847428,-153.0,0.00019454,2]
[346295036,1734877847438,-153.0,0.00019454,2]
[346295037,1734877847447,-153.0,0.00019454,2]
[346295038,1734877847457,-153.0,0.00019454,2]
[346295039,1734877847466,-153.0,0.00019454,2]
[346295040,1734877847476,-153.0,0.00019454,2]
[346295041,1734877847486,-153.0,0.00019454,2]
[346295042,1734877847496,-153.0,0.00019454,2]
[346295043,1734877847505,-153.0,0.00019454,2]
[346295044,1734877847515,-153.0,0.00019454,2]
[346295045,1734877847524,-153.0,0.00019454,2]
[346295046,1734877847533,-153.0,0.00019454,2]
[346295047,1734877847543,-153.0,0.00019454,2]
[346295048,1734877847552,-153.0,0.00019454,2]
[346295049,1734877847562,-153.0,0.00019454,2]
[346295050,1734877847572,-153.0,0.00019454,2]
[346295051,1734877847582,-153.0,0.00019454,2]
[346295052,1734877847591,-153.0,0.00019454,2]
[346295053,1734877847601,-153.0,0.00019454,2]
[346295054,1734877847611,-153.0,0.00019454,2]
[346295055,1734877847621,-153.0,0.00019454,2]
[346295056,1734877847631,-153.0,0.00019454,2]
[346295057,1734877847645,-153.0,0.00019454,2]
[346295058,1734877847654,-153.0,0.00019454,2]
[346295059,1734877847664,-153.0,0.00019454,2]
[346295060,1734877847673,-153.0,0.00019454,2]
[346295061,1734877847683,-153.0,0.00019454,2]
[346295062,1734877847693,-153.0,0.00019454,2]
[346295063,1734877847703,-153.0,0.00019454,2]
[346295064,1734877847712,-153.0,0.00019454,2]
[346295065,1734877847722,-153.0,0.00019454,2]
[346295066,1734877847732,-153.0,0.00019454,2]
[346295067,1734877847741,-153.0,0.00019454,2]
[346295068,1734877847751,-153.0,0.00019454,2]
[346295069,1734877847761,-153.0,0.00019454,2]
[346295070,1734877847771,-153.0,0.00019454,2]
[346295071,1734877847781,-153.0,0.00019454,2]
[346295072,1734877847790,-153.0,0.00019454,2]
[346295073,1734877847801,-153.0,0.00019454,2]
[346295074,1734877847810,-153.0,0.00019454,2]
[346295075,1734877847820,-153.0,0.00019454,2]
[346295076,1734877847830,-153.0,0.00019454,2]
[346295077,1734877847839,-153.0,0.00019454,2]
[346295078,1734877847849,-153.0,0.00019454,2]
[346295079,1734877847858,-153.0,0.00019454,2]
[346295080,1734877847868,-153.0,0.00019454,2]
[346295081,1734877847877,-153.0,0.00019454,2]
[346295082,1734877847888,-153.0,0.00019454,2]
[346295083,1734877847898,-153.0,0.00019454,2]
[346295084,1734877847908,-153.0,0.00019454,2]
[346295085,1734877847918,-153.0,0.00019454,2]
[346295086,1734877847927,-153.0,0.00019454,2]
[346295087,1734877847937,-153.0,0.00019454,2]
[346295088,1734877847947,-153.0,0.00019454,2]
[346295089,1734877847956,-153.0,0.00019454,2]
[346295090,1734877847970,-153.0,0.00019454,2]
[346295091,1734877847980,-153.0,0.00019454,2]
[346295092,1734877847990,-153.0,0.00019454,2]
[346295093,1734877847999,-153.0,0.00019454,2]
[346295094,1734877848009,-153.0,0.00019454,2]
[346295095,1734877848018,-153.0,0.00019454,2]
[346295096,1734877848028,-153.0,0.00019454,2]
[346295097,1734877848038,-153.0,0.00019454,2]
[346295098,1734877848048,-153.0,0.00019454,2]
[346295099,1734877848058,-153.0,0.00019454,2]
[346295100,1734877848074,-153.0,0.00019454,2]
[346295101,1734877848083,-153.0,0.00019454,2]
[346295102,1734877848094,-10156.59937798,0.00019454,2]
[346295103,1734877848103,-5194.41337268,0.00019456,2]
[346295104,1734877848114,-12923.58146854,0.00019466,2]
[346295105,1734877848124,-3906.38437615,0.00019469,2]
[346295106,1734877848136,-12923.58146854,0.00019476,2]
[346295107,1734877848147,-10156.59937798,0.00019478,2]
[346295108,1734877848157,-12923.58146854,0.0001948,2]
[346295109,1734877848168,-12923.58146854,0.00019482,2]
[346295110,1734877848177,-3906.38437615,0.00019483,2]
[346295111,1734877848187,-5194.41337268,0.00019485,2]
[346295112,1734877848197,-10156.59937798,0.00019485,2]
[346295113,1734877848207,-3906.38437615,0.00019487,2]
[346295114,1734877848218,-475508.68336865,0.0001949,5]
[346295115,1734877848228,-5194.41337268,0.00019491,2]
[346295116,1734877848238,-10156.59937798,0.00019493,2]
[346295117,1734877848248,-3906.38437615,0.00019493,2]
[346295118,1734877848259,-5194.41337268,0.00019493,2]
[346295119,1734877848269,-3906.38437615,0.00019498,2]
[346295120,1734877848279,-5194.41337268,0.000195,2]
[346295121,1734877848289,-2906.0,0.000195,2]
[346295122,1734877848299,-13762.13470299,0.000195,2]
[346295123,1734877848309,-554.58315408,0.000195,2]
[346295124,1734877848319,-159.05088367,0.00019562,2]
[346295125,1734877848328,-1033.28936096,0.000196,2]
[346295126,1734877848337,-1134.45870504,0.000196,2]
[346295127,1734877848347,-1148.2308973,0.000196,2]
[346295128,1734877848356,-1098.95433431,0.000196,2]
[346295129,1734877848366,-1038.24522804,0.000196,2]
[346295130,1734877848376,-1000.0,0.000196,2]
[346295131,1734877848387,-617055.34019287,0.000196,2]
[346295132,1734877848397,-1033.45762374,0.000196,2]
[346295133,1734877848406,-1024.23154289,0.000196,2]
[346295134,1734877848416,-421.4551604,0.00019645,2]
[346295135,1734877848425,-13762.13470299,0.000197,2]
[346295136,1734877848436,-22093.48725249,0.000197,2]
[346295137,1734877848446,-554.58315407,0.000197,2]
[346295138,1734877848456,-590.91344228,0.00019716,2]
[346295139,1734877848466,-500.0,0.00019725,2]
[346295140,1734877848476,-2939.79,0.00019725,2]
[346295141,1734877848485,-2939.79,0.00019725,2]
[346295142,1734877848495,-2939.79,0.00019725,2]
[346295143,1734877848505,-431.164906,0.00019726,2]
[346295144,1734877848515,-3754.52686,0.00019726,2]
[346295145,1734877848525,-452.41,0.00019726,2]
[346295146,1734877848535,-500.0,0.00019726,2]
[346295147,1734877848544,-500.0,0.00019726,2]
[346295148,1734877848554,-500.0,0.00019726,2]
[346295149,1734877848564,-500.0,0.00019726,2]
[346295150,1734877848574,-500.0,0.00019726,2]
[346295151,1734877848583,-500.0,0.00019726,2]
[346295152,1734877848593,-500.0,0.00019726,2]
[346295153,1734877848602,-500.0,0.00019726,2]
[346295154,1734877848613,-500.0,0.00019726,2]
[346295155,1734877848622,-500.0,0.00019726,2]
[346295156,1734877848632,-500.0,0.00019726,2]
[346295157,1734877848647,-500.0,0.00019726,2]
[346295158,1734877848657,-500.0,0.00019726,2]
[346295159,1734877848667,-500.0,0.00019726,2]
[346295160,1734877848678,-500.0,0.00019726,2]
[346295161,1734877848689,-943.81,0.00019726,2]
[346295162,1734877848699,-650.2,0.00019726,2]
[346295163,1734877848709,-500.0,0.00019726,2]
[346295164,1734877848718,-283.51,0.00019726,2]
[346295165,1734877848728,-500.0,0.00019726,2]
[346295166,1734877848738,-505.74122413,0.00019726,2]
[346295167,1734877848748,-555.4,0.00019726,2]
[346295168,1734877848758,-500.0,0.00019726,2]
[346295169,1734877848767,-500.0,0.00019726,2]
[346295170,1734877848777,-500.0,0.00019726,2]
[346295171,1734877848787,-500.0,0.00019726,2]
[346295172,1734877848796,-500.0,0.00019726,2]
[346295173,1734877848806,-500.0,0.00019726,2]
[346295174,1734877848816,-500.0,0.00019726,2]
[346295175,1734877848826,-500.0,0.00019726,2]
[346295176,1734877848835,-500.0,0.00019726,2]
[346295177,1734877848845,-500.0,0.00019726,2]
[346295178,1734877848855,-500.0,0.00019726,2]
[346295179,1734877848865,-500.0,0.00019726,2]
[346295180,1734877848875,-500.0,0.00019726,2]
[346295181,1734877848888,-500.0,0.00019726,2]
[346295182,1734877848898,-667.33,0.00019726,2]
[346295183,1734877848908,-901.68,0.00019726,2]
[346295184,1734877848918,-525.86,0.00019726,2]
[346295185,1734877848928,-500.0,0.00019726,2]
[346295186,1734877848938,-500.0,0.00019726,2]
[346295187,1734877848948,-1381.98,0.00019726,2]
[346295188,1734877848958,-500.0,0.00019726,2]
[346295189,1734877848968,-500.0,0.00019726,2]
[346295190,1734877848977,-606.6,0.00019726,2]
[346295191,1734877848987,-500.0,0.00019726,2]
[346295192,1734877848996,-1022.23,0.00019726,2]
[346295193,1734877849007,-534.64,0.00019726,2]
[346295194,1734877849017,-528.02,0.00019726,2]
[346295195,1734877849026,-500.0,0.00019726,2]
[346295196,1734877849036,-500.0,0.00019726,2]
[346295197,1734877849046,-500.0,0.00019726,2]
[346295198,1734877849059,-500.0,0.00019726,2]
[346295199,1734877849069,-500.0,0.00019726,2]
[346295200,1734877849079,-500.0,0.00019726,2]
[346295201,1734877849089,-981.15,0.00019726,2]
[346295202,1734877849099,-500.0,0.00019726,2]
[346295203,1734877849109,-500.0,0.00019726,2]
[346295204,1734877849119,-500.0,0.00019726,2]
[346295205,1734877849128,-500.0,0.00019726,2]
[346295206,1734877849140,-582.53,0.00019726,2]
[346295207,1734877849150,-500.0,0.00019726,2]
[346295208,1734877849160,-500.0,0.00019726,2]
[346295209,1734877849170,-564.16,0.00019726,2]
[346295210,1734877849180,-500.0,0.00019726,2]
[346295211,1734877849190,-500.0,0.00019726,2]
[346295212,1734877849199,-500.0,0.00019726,2]
[346295213,1734877849208,-500.0,0.00019726,2]
[346295214,1734877849217,-948.84,0.00019726,2]
[346295215,1734877849226,-500.0,0.00019726,2]
[346295216,1734877849239,-584.99,0.00019726,2]
[346295217,1734877849249,-500.0,0.00019726,2]
[346295218,1734877849259,-500.0,0.00019726,2]
[346295219,1734877849269,-500.0,0.00019726,2]
[346295220,1734877849278,-6324.93,0.00019726,2]
[346295221,1734877849288,-1043.22,0.00019726,2]
[346295222,1734877849298,-632.71,0.00019726,2]
[346295223,1734877849307,-500.0,0.00019726,2]
[346295224,1734877849318,-500.0,0.00019726,2]
[346295225,1734877849328,-500.0,0.00019726,2]
[346295226,1734877849338,-500.0,0.00019726,2]
[346295227,1734877849347,-677.22,0.00019726,2]
[346295228,1734877849357,-633.93,0.00019726,2]
[346295229,1734877849367,-533.9226078,0.00019726,2]
[346295230,1734877849378,-500.0,0.00019726,2]
[346295231,1734877849389,-1106.03,0.00019726,2]
[346295232,1734877849401,-500.0,0.00019726,2]
[346295233,1734877849411,-500.0,0.00019726,2]
[346295234,1734877849421,-609.07,0.00019726,2]
[346295235,1734877849431,-500.0,0.00019726,2]
[346295236,1734877849442,-500.0,0.00019726,2]
[346295237,1734877849452,-500.0,0.00019726,2]
[346295238,1734877849462,-562.49109711,0.00019726,2]
[346295239,1734877849473,-500.0,0.00019726,2]
[346295240,1734877849483,-1061.09,0.00019726,2]
[346295241,1734877849494,-500.0,0.00019726,2]
[346295242,1734877849505,-500.0,0.00019726,2]
[346295243,1734877849515,-500.0,0.00019726,2]
[346295244,1734877849525,-500.0,0.00019726,2]
[346295245,1734877849535,-500.0,0.00019726,2]
[346295246,1734877849545,-500.0,0.00019726,2]
[346295247,1734877849555,-500.0,0.00019726,2]
[346295248,1734877849565,-500.0,0.00019726,2]
[346295249,1734877849575,-500.0,0.00019726,2]
[346295250,1734877849584,-500.0,0.00019726,2]
[346295251,1734877849594,-928.87,0.00019726,2]
[346295252,1734877849603,-500.0,0.00019726,2]
[346295253,1734877849613,-622.46,0.00019726,2]
[346295254,1734877849623,-500.0,0.00019726,2]
[346295255,1734877849633,-500.0,0.00019726,2]
[346295256,1734877849645,-500.0,0.00019726,2]
[346295257,1734877849655,-500.0,0.00019726,2]
[346295258,1734877849665,-2137.17,0.00019726,2]
[346295259,1734877849675,-2980.8,0.00019726,2]
[346295260,1734877849685,-1326.15,0.00019726,2]
[346295261,1734877849695,-500.0,0.00019726,2]
[346295262,1734877849704,-830.2,0.00019726,2]
[346295263,1734877849714,-3811.29,0.00019726,2]
[346295264,1734877849724,-500.0,0.00019726,2]
[346295265,1734877849734,-500.0,0.00019726,2]
[346295266,1734877849743,-578.17,0.00019726,2]
[346295267,1734877849753,-500.0,0.00019726,2]
[346295268,1734877849763,-13262.85,0.00019726,2]
[346295269,1734877849773,-956.22,0.00019726,2]
[346295270,1734877849783,-979.7,0.00019726,2]
[346295271,1734877849793,-500.0,0.00019726,2]
[346295272,1734877849803,-1228.81,0.00019726,2]
[346295273,1734877849812,-500.0,0.00019726,2]
[346295274,1734877849821,-1043.8,0.00019726,2]
[346295275,1734877849830,-515.01,0.00019726,2]
[346295276,1734877849839,-386.78,0.00019726,2]
[346295277,1734877849848,-1802.79,0.00019726,2]
[346295278,1734877849857,-500.0,0.00019726,2]
[346295279,1734877849866,-500.0,0.00019726,2]
[346295280,1734877849876,-500.0,0.00019726,2]
[346295281,1734877849885,-500.0,0.00019726,2]
[346295282,1734877849896,-1000.0,0.00019726,2]
[346295283,1734877849905,-515.06,0.00019726,2]
[346295284,1734877849914,-2502.68,0.00019726,2]
[346295285,1734877849923,-967.38,0.00019726,2]
[346295286,1734877849933,-727.82,0.00019726,2]
[346295287,1734877849942,-500.0,0.00019726,2]
[346295288,1734877850146,-500.0,0.00019726,2]
[346295289,1734877850156,-500.0,0.00019726,2]
[346295290,1734877850166,-500.0,0.00019726,2]
[346295291,1734877850176,-762.45,0.00019726,2]
[346295292,1734877850185,-6787.34,0.00019726,2]
[346295293,1734877850195,-593.47,0.00019726,2]
[346295294,1734877850206,-895.13,0.00019726,2]
[346295295,1734877850215,-1264.2,0.00019726,2]
[346295296,1734877850225,-579.67,0.00019726,2]
[346295297,1734877850234,-711.07,0.00019726,2]
[346295298,1734877850244,-500.0,0.00019726,2]
[346295299,1734877850254,-500.0,0.00019726,2]
[346295300,1734877850263,-569.73,0.00019726,2]
[346295301,1734877850273,-608.48,0.00019726,2]
[346295302,1734877850282,-800.26,0.00019726,2]
[346295303,1734877850291,-714.14,0.00019726,2]
[346295304,1734877850301,-500.0,0.00019726,2]
[346295305,1734877850310,-634.39,0.00019726,2]
[346295306,1734877850319,-742.63,0.00019726,2]
[346295307,1734877850328,-500.0,0.00019726,2]
[346295308,1734877850338,-3264.05,0.00019726,2]